fUSD/lending_fUSD_20251223
["ID","MTS","AMOUNT","RATE_DAILY","PERIOD"]
[399551613,1766482243802,-500.0,0.00016438,2]
[399551614,1766482243811,-500.0,0.00016438,2]
[399551615,1766482243820,-500.0,0.00016438,2]
[399551616,1766482243829,-500.0,0.00016438,2]
[399551617,1766482243838,-500.0,0.00016438,2]
[399551618,1766482243847,-620.76763019,0.00016438,2]
[399551619,1766482243856,-500.0,0.00016438,2]
[399551620,1766482243865,-500.0,0.00016465,2]
[399551621,1766482243875,-500.0,0.00016466,2]
[399551623,1766482243884,-500.0,0.00016466,2]
[399551624,1766482243893,-500.0,0.00016466,2]
[399551625,1766482243902,-500.0,0.00016466,2]
[399551626,1766482243912,-150.0,0.00016466,2]
[399551627,1766482243921,-500.0,0.00016466,2]
[399551628,1766482243931,-500.0,0.00016466,2]
[399551629,1766482243940,-500.0,0.00016466,2]
[399551630,1766482243950,-500.0,0.00016466,2]
[399551631,1766482243959,-500.0,0.00016466,2]
[399551633,1766482243968,-500.0,0.00016466,2]
[399551635,1766482243978,-500.0,0.00016466,2]
[399551637,1766482243987,-500.0,0.00016466,2]
[399551638,1766482243995,-207.4,0.00016484,2]
[399551639,1766482244005,-500.0,0.00016493,2]
[399551640,1766482244014,-464.54142088,0.00016493,2]
[399551641,1766482244023,-500.0,0.00016493,2]
[399551642,1766482244032,-452.2515866,0.00016493,2]
[399551643,1766482244041,-500.0,0.00016493,2]
[399551644,1766482244051,-240.64119308,0.00016493,2]
[399551645,1766482244060,-500.0,0.00016493,2]
[399551646,1766482244069,-500.0,0.00016493,2]
[399551647,1766482244079,-500.0,0.00016493,2]
[399551648,1766482244088,-500.0,0.00016493,2]
[399551649,1766482244098,-500.0,0.00016493,2]
[399551650,1766482244107,-500.0,0.00016493,2]
[399551651,1766482244117,-500.0,0.00016493,2]
[399551652,1766482244127,-500.0,0.00016493,2]
[399551653,1766482244137,-500.0,0.0001652,2]
[399551654,1766482244146,-500.0,0.00016521,2]
[399551655,1766482244156,-500.0,0.00016521,2]
[399551656,1766482244165,-500.0,0.00016521,2]
[399551657,1766482244174,-265.16707175,0.00016521,2]
[399551658,1766482244184,-500.0,0.00016521,2]
[399551659,1766482244193,-500.0,0.00016521,2]
[399551660,1766482244202,-500.0,0.00016521,2]
[399551661,1766482244212,-158.19288149,0.00016521,2]
[399551662,1766482244221,-500.0,0.00016521,2]
[399551663,1766482244230,-394.24474848,0.00016521,2]
[399551664,1766482244239,-16705.79811319,0.00016528,2]
[399551665,1766482244249,-500.0,0.00016548,2]
[399551666,1766482244258,-500.0,0.00016548,2]
[399551667,1766482244267,-500.0,0.00016548,2]
[399551668,1766482244276,-500.0,0.00016548,2]
[399551669,1766482244285,-500.0,0.00016548,2]
[399551670,1766482244294,-500.0,0.00016548,2]
[399551671,1766482244306,-500.0,0.00016548,2]
[399551672,1766482244315,-500.0,0.00016548,2]
[399551673,1766482244324,-500.0,0.00016575,2]
[399551674,1766482244333,-500.0,0.00016575,2]
[399551675,1766482244343,-500.0,0.00016575,2]
[399551676,1766482244353,-500.0,0.00016575,2]
[399551677,1766482244363,-453.68455195,0.00016575,2]
[399551678,1766482244372,-500.0,0.00016575,2]
[399551679,1766482244382,-500.0,0.00016575,2]
[399551680,1766482244391,-630.05295224,0.00016575,2]
[399551681,1766482244400,-500.0,0.00016602,2]
[399551682,1766482244409,-500.0,0.00016603,2]
[399551683,1766482244418,-329.0,0.00016603,2]
[399551684,1766482244427,-500.0,0.00016603,2]
[399551685,1766482244436,-500.0,0.00016603,2]
[399551686,1766482244446,-500.0,0.00016603,2]
[399551687,1766482244455,-500.0,0.0001663,2]
[399551688,1766482244464,-500.0,0.0001663,2]
[399551689,1766482244474,-500.0,0.0001663,2]
[399551690,1766482244484,-500.0,0.0001663,2]
[399551691,1766482244493,-500.0,0.0001663,2]
[399551692,1766482244502,-500.0,0.00016657,2]
[399551693,1766482244511,-500.0,0.00016658,2]
[399551694,1766482244521,-214.0,0.00016658,2]
[399551695,1766482244531,-500.0,0.00016658,2]
[399551696,1766482244543,-350.0,0.00016658,2]
[399551697,1766482244552,-3086.89502287,0.0001666,2]
[399551698,1766482244565,-218.80351721,0.00016685,2]
[399551699,1766482244575,-633.0,0.00016685,2]
[399551700,1766482244586,-500.0,0.00016685,2]
[399551701,1766482244595,-152.20980143,0.00016697,2]
[399551702,1766482244605,-217.15233878,0.00016697,2]
[399551703,1766482244615,-595.37131296,0.00016697,2]
[399551704,1766482244624,-153.06938302,0.00016697,2]
[399551705,1766482244633,-160.85,0.00016712,2]
[399551706,1766482244641,-500.0,0.00016712,2]
[399551707,1766482244650,-500.0,0.0001674,2]
[399551708,1766482244659,-500.0,0.00016767,2]
[399551709,1766482244670,-500.0,0.00016795,2]
[399551710,1766482244679,-500.0,0.00016822,2]
[399551711,1766482244687,-500.0,0.00016849,2]
[399551712,1766482244698,-200.0,0.00016864,2]
[399551713,1766482244707,-500.0,0.00016877,2]
[399551714,1766482244717,-166.66,0.00016895,2]
[399551715,1766482244726,-10000.0,0.000169,2]
[399551716,1766482244735,-397.76244075,0.000169,2]
[399551717,1766482244744,-221.89540359,0.000169,2]
[399551718,1766482244753,-1569.95644477,0.000169,2]
[399551719,1766482244762,-16705.79811319,0.000169,2]
[399551720,1766482244771,-342.2070404,0.000169,2]
[399551721,1766482244780,-473.13264223,0.000169,2]
[399551722,1766482244789,-612.25840165,0.00016904,2]
[399551723,1766482244798,-3091.5868871,0.00016932,2]
[399551724,1766482244807,-14222.0971293,0.00016932,2]
[399551725,1766482244817,-159228.491041,0.00016932,2]
[399551726,1766482244827,-41661.4459836,0.00016932,2]
[399551727,1766482244836,-3227.3663485,0.00016932,2]
[399551728,1766482244845,-917.0,0.00016959,2]
[399551729,1766482244854,-160.0,0.00016959,2]
[399551730,1766482244863,-500.0,0.00016973,2]
[399551731,1766482244872,-500.0,0.00016973,2]
[399551732,1766482244881,-500.0,0.00016973,2]
[399551733,1766482244890,-500.0,0.00016973,2]
[399551734,1766482244899,-500.0,0.00016973,2]
[399551735,1766482244907,-500.0,0.00016973,2]
[399551736,1766482244917,-500.0,0.00016973,2]
[399551737,1766482244926,-500.0,0.00016973,2]
[399551738,1766482244935,-500.0,0.00016973,2]
[399551739,1766482244944,-500.0,0.00016973,2]
[399551740,1766482244953,-500.0,0.00016973,2]
[399551741,1766482244962,-500.0,0.00016973,2]
[399551742,1766482244971,-500.0,0.00016973,2]
[399551743,1766482244980,-500.0,0.00016973,2]
[399551744,1766482244990,-500.0,0.00016973,2]
[399551745,1766482245000,-500.0,0.00016973,2]
[399551746,1766482245011,-500.0,0.00016973,2]
[399551747,1766482245020,-500.0,0.00016973,2]
[399551748,1766482245029,-500.66742167,0.00016973,2]
[399551749,1766482245040,-500.0,0.00016973,2]
[399551750,1766482245049,-500.0,0.00016973,2]
[399551751,1766482245061,-150.0,0.00016973,2]
[399551752,1766482245070,-4091.0618187,0.00016986,2]
[399551753,1766482245079,-105389.94,0.00016986,2]
[399551754,1766482245089,-600.0,0.00016986,2]
[399551755,1766482245098,-1475.42051789,0.0001699,2]
[399551756,1766482245108,-1475.42051789,0.0001699,2]
[399551757,1766482245118,-300.0,0.00016999,2]
[399551758,1766482245127,-666.0,0.00016999,2]
[399551759,1766482245136,-2000.0,0.00016999,2]
[399551760,1766482245146,-2000.0,0.00016999,2]
[399551761,1766482245155,-2000.0,0.00016999,2]
[399551762,1766482245164,-1973.065,0.00016999,2]
[399551763,1766482245174,-1000.0,0.00016999,2]
[399551764,1766482245184,-1000.0,0.00016999,2]
[399551765,1766482245194,-1000.0,0.00016999,2]
[399551766,1766482245204,-265.838,0.00016999,2]
[399551767,1766482245215,-1000.0,0.00016999,2]
[399551768,1766482245225,-1000.0,0.00016999,2]
[399551769,1766482245236,-1000.0,0.00016999,2]
[399551770,1766482245245,-500.0,0.00016999,2]
[399551771,1766482245255,-268.08998777,0.00016999,2]
[399551772,1766482245266,-192.4032348,0.00016999,2]
[399551773,1766482245275,-500.0,0.00016999,2]
[399551774,1766482245284,-269.16313566,0.00016999,2]
[399551775,1766482245294,-840247.99013236,0.00017,2]
[399551776,1766482245306,-1148674.96903982,0.00017,2]
[399551777,1766482245320,-1353.53914065,0.00017,2]
[399551778,1766482245329,-1019.39402669,0.00017,2]
[399551779,1766482245339,-307.19611922,0.00017,2]
[399551780,1766482245349,-250.0,0.00017,2]
[399551781,1766482245358,-2000.0,0.00017,2]
[399551782,1766482245367,-151.0,0.00017,2]
[399551783,1766482245377,-151.0,0.00017,2]
[399551784,1766482245385,-200.0,0.00017,2]
[399551785,1766482245395,-151.0,0.00017,2]
[399551786,1766482245404,-151.0,0.00017,2]
[399551787,1766482245413,-1896433.62496329,0.00017,2]
[399551788,1766482245431,-3608.27472446,0.00017,2]
[399551789,1766482245442,-12382.28841856,0.00017,2]
[399551790,1766482245544,-1844.40697459,0.00013926,2]
[399551791,1766482245557,-1363.68832801,0.00013926,2]
[399551792,1766482245566,-5536.31167199,0.00017,2]
[399551793,1766482245577,-1134.51786749,0.00017,2]
[399551794,1766482245588,-1796.40608397,0.00017,2]
[399551795,1766482245598,-1416.58319705,0.00017,2]
[399551797,1766482246320,-151.0,0.00015219,2]
[399551798,1766482246330,-842.0,0.00017,2]
[399551799,1766482246375,-4330.03520605,0.00017,2]
[399551800,1766482246541,-3208.0953026,0.00014298,2]
[399551801,1766482246550,-1408.26580128,0.00017,2]
[399551802,1766482246564,-651.4799978,0.00017,2]
[399551803,1766482246574,-1751.16,0.00017,2]
[399551804,1766482246596,-753.01482349,0.00017,2]
[399551805,1766482246607,-2332.25914526,0.00017,2]
[399551806,1766482246707,-1399.79386997,0.00017,2]
[399551808,1766482893210,-152.26,0.00010788,2]
[399551810,1766483379541,-158.9,0.00012712,2]
[399551811,1766483379561,-300.0,0.00012997,2]
[399551812,1766483379581,-166.67,0.00013049,2]
[399551813,1766483379602,-162.70210317,0.00013283,2]
[399551814,1766483379626,-195.0,0.00013283,2]
[399551815,1766483379646,-1048.369,0.00013283,2]
[399551816,1766483379676,-195.0,0.00013382,2]
[399551817,1766483379702,-1200.0,0.00013436,2]
[399551818,1766483379723,-300.0,0.00013436,2]
[399551819,1766483379742,-6273.35889683,0.00013437,2]
[399551820,1766483380660,-10000.0,0.00013437,2]
[399551821,1766483381132,-408.64110317,0.00013437,2]
[399551822,1766483381154,-261.0,0.00013453,2]
[399551823,1766483381179,-300.0,0.00013453,2]
[399551824,1766483381202,-1200.0,0.00013453,2]
[399551825,1766483381223,-150.0,0.00013453,2]
[399551826,1766483381244,-5854.10800798,0.00013454,2]
[399551827,1766483381265,-1063.53789994,0.00013454,2]
[399551828,1766483381288,-762.71298891,0.00013454,2]
[399551829,1766483381743,-10000.0,0.00013454,2]
[399551830,1766483382215,-5989.15349335,0.00013454,2]
[399551831,1766483382241,-216.20703249,0.00013454,2]
[399551832,1766483382264,-500.0,0.00013539,2]
[399551833,1766483382286,-500.0,0.00013539,2]
[399551834,1766483382308,-500.0,0.00013539,2]
[399551835,1766483382329,-150.0,0.00013539,2]
[399551836,1766483382352,-500.0,0.00013539,2]
[399551837,1766483382375,-150.0,0.00013539,2]
[399551838,1766483382396,-150.0,0.00013539,2]
[399551839,1766483382418,-500.0,0.00013539,2]
[399551840,1766483382440,-150.0,0.00013539,2]
[399551841,1766483382465,-500.0,0.00013539,2]
[399551842,1766483382489,-194.63947416,0.00013539,2]
[399551843,1766483382841,-305.36052584,0.00013539,2]
[399551844,1766483382863,-150.0,0.00013539,2]
[399551845,1766483382885,-500.0,0.00013539,2]
[399551846,1766483382906,-500.0,0.00013539,2]
[399551847,1766483382927,-500.0,0.00013539,2]
[399551848,1766483382950,-500.0,0.00013539,2]
[399551849,1766483382972,-500.0,0.00013539,2]
[399551850,1766483383000,-150.0,0.00013539,2]
[399551851,1766483383022,-150.0,0.00013539,2]
[399551852,1766483383043,-200.0,0.00013546,2]
[399551853,1766483383066,-500.0,0.00013546,2]
[399551854,1766483383088,-500.0,0.00013546,2]
[399551855,1766483383109,-500.0,0.00013546,2]
[399551856,1766483383133,-500.0,0.00013546,2]
[399551857,1766483383155,-500.0,0.00013546,2]
[399551858,1766483383178,-500.0,0.00013546,2]
[399551859,1766483383203,-500.0,0.00013546,2]
[399551860,1766483383225,-500.0,0.00013546,2]
[399551861,1766483383247,-500.0,0.00013546,2]
[399551862,1766483383270,-500.0,0.00013546,2]
[399551863,1766483383292,-500.0,0.00013546,2]
[399551864,1766483383314,-500.0,0.00013546,2]
[399551865,1766483383336,-500.0,0.00013546,2]
[399551866,1766483383357,-44.63947416,0.00013546,2]
[399551867,1766483383392,-455.36052584,0.00013546,2]
[399551868,1766483383416,-500.0,0.00013546,2]
[399551869,1766483383439,-500.0,0.00013546,2]
[399551870,1766483383461,-529.63919594,0.00013546,2]
[399551871,1766483383483,-500.0,0.00013546,2]
[399551872,1766483383505,-500.0,0.00013546,2]
[399551873,1766483383533,-500.0,0.00013546,2]
[399551874,1766483383571,-200.0,0.00013546,2]
[399551875,1766483383594,-200.0,0.00013546,2]
[399551876,1766483383617,-500.0,0.00013546,2]
[399551877,1766483383637,-335.26105309,0.00013546,2]
[399551878,1766483383659,-151.0,0.00013546,2]
[399551879,1766483383681,-151.0,0.00013546,2]
[399551880,1766483383702,-151.0,0.00013546,2]
[399551881,1766483383722,-151.0,0.00013546,2]
[399551882,1766483383743,-151.0,0.00013546,2]
[399551883,1766483383764,-151.0,0.00013546,2]
[399551884,1766483383784,-151.0,0.00013546,2]
[399551885,1766483383804,-151.0,0.00013546,2]
[399551886,1766483383826,-151.0,0.00013546,2]
[399551887,1766483383849,-151.0,0.00013546,2]
[399551888,1766483383879,-151.0,0.00013546,2]
[399551889,1766483383903,-500.0,0.00013553,2]
[399551890,1766483383929,-500.0,0.00013553,2]
[399551891,1766483383954,-500.0,0.00013553,2]
[399551892,1766483383979,-500.0,0.00013553,2]
[399551893,1766483384006,-500.0,0.00013553,2]
[399551894,1766483384033,-500.0,0.00013553,2]
[399551895,1766483384058,-500.0,0.00013553,2]
[399551896,1766483384086,-118.73922513,0.00013553,2]
[399551897,1766483384120,-140.94276068,0.00013553,2]
[399551898,1766483384144,-500.0,0.00013553,2]
[399551899,1766483384168,-500.0,0.00013553,2]
[399551900,1766483384193,-500.0,0.00013553,2]
[399551901,1766483384218,-500.0,0.00013553,2]
[399551902,1766483384244,-500.0,0.00013553,2]
[399551903,1766483384267,-500.0,0.00013553,2]
[399551904,1766483384292,-500.0,0.00013553,2]
[399551905,1766483384314,-500.0,0.00013553,2]
[399551906,1766483384339,-500.0,0.00013553,2]
[399551907,1766483384360,-300.0,0.00013553,2]
[399551908,1766483384387,-583.67202535,0.00013553,2]
[399551909,1766483384414,-500.0,0.00013553,2]
[399551910,1766483384436,-500.0,0.00013553,2]
[399551911,1766483384461,-500.0,0.00013553,2]
[399551912,1766483384485,-500.0,0.00013553,2]
[399551913,1766483384509,-500.0,0.00013553,2]
[399551914,1766483384532,-500.0,0.00013553,2]
[399551915,1766483384555,-500.0,0.00013553,2]
[399551916,1766483384578,-500.0,0.00013553,2]
[399551917,1766483384602,-475.38521397,0.00013553,2]
[399551918,1766483384644,-24.61478603,0.00013553,2]
[399551919,1766483384670,-500.0,0.00013553,2]
[399551920,1766483384694,-500.0,0.00013553,2]
[399551921,1766483384717,-500.0,0.00013553,2]
[399551922,1766483384739,-500.0,0.00013553,2]
[399551923,1766483384764,-500.0,0.00013553,2]
[399551924,1766483384792,-500.0,0.00013553,2]
[399551925,1766483384815,-500.0,0.00013553,2]
[399551926,1766483384839,-500.0,0.00013553,2]
[399551927,1766483384863,-500.0,0.00013553,2]
[399551928,1766483384886,-500.0,0.00013553,2]
[399551929,1766483384909,-500.0,0.00013553,2]
[399551930,1766483384932,-1000.0,0.00013554,2]
[399551931,1766483384953,-500.0,0.00013566,2]
[399551932,1766483384974,-500.0,0.00013566,2]
[399551933,1766483384998,-500.0,0.00013566,2]
[399551934,1766483385019,-150.0,0.00013566,2]
[399551935,1766483385040,-500.0,0.00013566,2]
[399551936,1766483385060,-257.86837201,0.00013566,2]
[399551937,1766483385082,-267.77127482,0.00013566,2]
[399551938,1766483385102,-500.0,0.00013566,2]
[399551939,1766483385123,-150.0,0.00013566,2]
[399551940,1766483385144,-149.74556714,0.00013566,2]
[399551941,1766483385170,-350.25443286,0.00013566,2]
[399551942,1766483385191,-500.0,0.00013566,2]
[399551943,1766483385216,-500.0,0.00013566,2]
[399551944,1766483385236,-500.0,0.00013566,2]
[399551945,1766483385258,-500.0,0.00013566,2]
[399551946,1766483385280,-500.0,0.00013566,2]
[399551947,1766483385301,-500.0,0.00013566,2]
[399551948,1766483385321,-1172.0,0.00013567,2]
[399551949,1766483385342,-500.0,0.00013594,2]
[399551950,1766483385364,-500.0,0.00013594,2]
[399551951,1766483385384,-500.0,0.00013594,2]
[399551952,1766483385406,-150.0,0.00013594,2]
[399551953,1766483385431,-500.0,0.00013594,2]
[399551954,1766483385452,-500.0,0.00013594,2]
[399551955,1766483385475,-255.7741324,0.00013594,2]
[399551956,1766483385496,-500.0,0.00013594,2]
[399551957,1766483385516,-500.0,0.00013594,2]
[399551958,1766483385536,-500.0,0.00013594,2]
[399551959,1766483385557,-500.0,0.00013594,2]
[399551960,1766483385578,-500.0,0.00013594,2]
[399551961,1766483385941,-71.97143474,0.00013594,2]
[399551962,1766483385968,-428.02856526,0.00013594,2]
[399551963,1766483385989,-500.0,0.00013594,2]
[399551964,1766483386008,-500.0,0.00013621,2]
[399551965,1766483386028,-452.2515866,0.00013621,2]
[399551966,1766483386049,-500.0,0.00013621,2]
[399551967,1766483386068,-240.64119308,0.00013621,2]
[399551968,1766483386099,-500.0,0.00013621,2]
[399551969,1766483386123,-464.54142088,0.00013621,2]
[399551970,1766483386144,-500.0,0.00013621,2]
[399551971,1766483386165,-500.0,0.00013621,2]
[399551972,1766483386186,-500.0,0.00013621,2]
[399551973,1766483386207,-500.0,0.00013621,2]
[399551974,1766483386228,-500.0,0.00013621,2]
[399551975,1766483386248,-500.0,0.00013621,2]
[399551976,1766483386269,-500.0,0.00013621,2]
[399551977,1766483386292,-215.0,0.00013643,2]
[399551978,1766483386313,-500.0,0.00013649,2]
[399551979,1766483386334,-500.0,0.00013649,2]
[399551980,1766483386354,-500.0,0.00013649,2]
[399551981,1766483386375,-265.16707175,0.00013649,2]
[399551982,1766483386396,-500.0,0.00013649,2]
[399551983,1766483386417,-158.19288149,0.00013649,2]
[399551984,1766483386438,-276.17728094,0.00013649,2]
[399551985,1766483386463,-223.82271906,0.00013649,2]
[399551986,1766483386488,-500.0,0.00013649,2]
[399551987,1766483386508,-500.0,0.00013649,2]
[399551988,1766483386529,-500.0,0.00013649,2]
[399551989,1766483386550,-1304.0,0.00013654,2]
[399551990,1766483386570,-1365.0,0.0001367,2]
[399551991,1766483386590,-500.0,0.00013676,2]
[399551992,1766483386613,-500.0,0.00013676,2]
[399551993,1766483386635,-500.0,0.00013676,2]
[399551994,1766483386656,-500.0,0.00013676,2]
[399551995,1766483386677,-500.0,0.00013676,2]
[399551996,1766483386699,-500.0,0.00013676,2]
[399551997,1766483386725,-500.0,0.00013676,2]
[399551998,1766483386746,-500.0,0.00013676,2]
[399551999,1766483386766,-473.10577167,0.00013681,2]
[399552000,1766483386787,-500.0,0.00013698,2]
[399552001,1766483386807,-500.0,0.00013698,2]
[399552002,1766483386829,-134.07150927,0.00013698,2]
[399552003,1766483386863,-365.92849073,0.00013698,2]
[399552004,1766483386885,-500.0,0.00013698,2]
[399552005,1766483386907,-500.0,0.00013698,2]
[399552006,1766483386928,-500.0,0.00013698,2]
[399552007,1766483386948,-500.0,0.00013698,2]
[399552008,1766483386969,-500.0,0.00013698,2]
[399552009,1766483386991,-500.0,0.00013698,2]
[399552010,1766483387012,-500.0,0.00013698,2]
[399552011,1766483387033,-391.94886084,0.00013698,2]
[399552012,1766483387054,-500.0,0.00013698,2]
[399552013,1766483387075,-500.0,0.00013698,2]
[399552014,1766483387100,-500.0,0.00013698,2]
[399552015,1766483387121,-500.0,0.00013698,2]
[399552016,1766483387142,-500.0,0.00013698,2]
[399552017,1766483387163,-500.0,0.00013698,2]
[399552018,1766483387184,-500.0,0.00013698,2]
[399552019,1766483387206,-500.0,0.00013698,2]
[399552020,1766483387230,-606.57691663,0.00013698,2]
[399552021,1766483387252,-166.66,0.00013699,2]
[399552022,1766483387276,-631.4,0.00013699,2]
[399552023,1766483387298,-337.4857318,0.00013703,2]
[399552024,1766483389978,-365.0,0.00013567,2]
[399552025,1766483390000,-162.5142682,0.00013703,2]
[399552026,1766483390022,-500.0,0.00013703,2]
[399552027,1766483390043,-500.0,0.00013703,2]
[399552028,1766483390063,-500.0,0.00013703,2]
[399552029,1766483390084,-453.68455195,0.00013703,2]
[399552030,1766483390105,-500.0,0.00013703,2]
[399552031,1766483390126,-500.0,0.00013703,2]
[399552032,1766483390150,-500.0,0.00013731,2]
[399552033,1766483390171,-500.0,0.00013731,2]
[399552034,1766483390191,-500.0,0.00013731,2]
[399552035,1766483390211,-500.0,0.00013731,2]
[399552036,1766483390232,-500.0,0.00013731,2]
[399552037,1766483390253,-500.0,0.00013731,2]
[399552038,1766483390274,-1000.0,0.00013754,2]
[399552039,1766483390294,-340.399,0.00013754,2]
[399552040,1766483390316,-2000.0,0.00013754,2]
[399552041,1766483390336,-178.40217985,0.00013754,2]
[399552042,1766483391625,-1821.59782015,0.00013754,2]
[399552043,1766483391647,-2000.0,0.00013754,2]
[399552044,1766483391666,-1973.065,0.00013754,2]
[399552045,1766483391689,-1000.0,0.00013754,2]
[399552046,1766483391711,-1000.0,0.00013754,2]
[399552047,1766483391745,-1000.0,0.00013754,2]
[399552048,1766483391766,-265.838,0.00013754,2]
[399552049,1766483391788,-939.49917985,0.00013754,2]
[399552050,1766483392502,-60.50082015,0.00013754,2]
[399552051,1766483392523,-1000.0,0.00013754,2]
[399552052,1766483392543,-1000.0,0.00013754,2]
[399552053,1766483392563,-500.0,0.00013758,2]
[399552054,1766483392584,-329.0,0.00013758,2]
[399552055,1766483392604,-500.0,0.00013758,2]
[399552056,1766483392632,-500.0,0.00013758,2]
[399552057,1766483392656,-500.0,0.00013758,2]
[399552058,1766483392677,-500.0,0.00013758,2]
[399552059,1766483392698,-500.0,0.00013786,2]
[399552060,1766483392719,-500.0,0.00013786,2]
[399552061,1766483392742,-214.0,0.00013786,2]
[399552062,1766483392763,-350.0,0.00013786,2]
[399552063,1766483392784,-500.0,0.00013786,2]
[399552064,1766483392804,-500.0,0.00013813,2]
[399552065,1766483392829,-500.0,0.00013813,2]
[399552066,1766483392851,-500.0,0.00013813,2]
[399552067,1766483392873,-166.66,0.00013836,2]
[399552068,1766483392895,-1379.83917985,0.00013837,2]
[399552069,1766483394098,-10000.0,0.00013837,2]
[399552070,1766483397826,-5372.02730237,0.00013837,2]
[399552071,1766483397849,-633.0,0.0001384,2]
[399552072,1766483397871,-500.0,0.0001384,2]
[399552073,1766483397900,-500.0,0.00013868,2]
[399552074,1766483397924,-500.0,0.00013895,2]
[399552075,1766483397947,-150.0,0.00013899,2]
[399552076,1766483397971,-500.0,0.00013899,2]
[399552077,1766483397992,-187.01383122,0.00013899,2]
[399552078,1766483398016,-500.0,0.00013899,2]
[399552079,1766483422762,-1086.99,0.00013566,2]
[399552080,1766483422789,-1086.99,0.0001384,2]
[399552081,1766483422811,-500.0,0.00013923,2]
[399552082,1766483422832,-265.0,0.00013923,2]
[399552083,1766483422853,-220.89163022,0.00013926,2]
[399552084,1766483422874,-620.76763019,0.00013926,2]
[399552085,1766483422894,-500.0,0.00013926,2]
[399552086,1766483422915,-495.0,0.00013942,2]
[399552087,1766483422936,-500.0,0.0001395,2]
[399552088,1766483422956,-500.0,0.00013954,2]
[399552089,1766483422977,-166.66,0.00013973,2]
[399552090,1766483422999,-500.0,0.00013977,2]
[399552091,1766483423020,-500.0,0.00013981,2]
[399552092,1766483423042,-300.0,0.00013982,2]
[399552093,1766483423067,-757.70073959,0.00013982,2]
[399552097,1766483431353,-450.72894432,0.00013566,2]
[399552098,1766483431365,-2006.69981462,0.00013566,2]
[399552099,1766483431460,-1436.99836843,0.00013566,2]
[399552100,1766483431470,-688.41381524,0.00013566,2]
[399552101,1766483431479,-2336.10781367,0.00013566,2]
[399552102,1766483431488,-2781.16205156,0.00013566,2]
[399552103,1766483431498,-442.29926041,0.00013982,2]
[399552104,1766483431507,-300.0,0.00013982,2]
[399552105,1766483431516,-300.0,0.00013983,2]
[399552106,1766483431525,-250.0,0.00013983,2]
[399552107,1766483431534,-300.0,0.00013983,2]
[399552108,1766483431543,-193.46504883,0.00013983,2]
[399552109,1766483431553,-250.0,0.00013983,2]
[399552110,1766483431562,-300.0,0.00013983,2]
[399552111,1766483431571,-192.55404957,0.00013983,2]
[399552112,1766483431580,-500.0,0.00014005,2]
[399552113,1766483431590,-394.24474848,0.00014009,2]
[399552114,1766483431599,-500.0,0.00014027,2]
[399552115,1766483431608,-612.25840165,0.00014032,2]
[399552116,1766483431618,-200.0,0.00014094,2]
[399552117,1766483431627,-200.0,0.00014094,2]
[399552118,1766483431636,-500.0,0.00014094,2]
[399552119,1766483431645,-166.66,0.0001411,2]
[399552120,1766483431654,-1086.99,0.00014114,2]
[399552121,1766483431664,-166.67,0.00014126,2]
[399552122,1766483431677,-500.12339319,0.00014173,2]